bitfinex-derivatives/quotes_BTCF0:USTF0_20250806
["timestamp","ask_amount","ask_price","bid_price","bid_amount"]
[1754465063907,0.76482468,114270.0,114260.0,0.97929094]
[1754465064809,0.74030468,114270.0,114260.0,0.97929094]
[1754465065409,0.2850818,114270.0,114260.0,0.97829094]
[1754465065909,0.1750318,114270.0,114260.0,0.97829094]
[1754465067707,0.1750318,114270.0,114260.0,0.97929094]
[1754465068709,0.1750318,114270.0,114260.0,0.98029094]
[1754465069214,0.2074418,114270.0,114260.0,0.98029094]
[1754465069414,0.2074418,114270.0,114260.0,0.97929094]
[1754465069614,0.2074418,114270.0,114260.0,0.98029094]
[1754465072712,0.2074418,114270.0,114260.0,0.38069094]
[1754465072916,0.71706468,114270.0,114260.0,0.98029094]
[1754465073217,0.74030468,114270.0,114260.0,0.98029094]
[1754465073719,0.2850818,114270.0,114260.0,0.98029094]
[1754465076414,0.2850818,114270.0,114260.0,0.38069094]
[1754465076615,0.2850818,114270.0,114260.0,0.98029094]
[1754465076815,0.76482468,114270.0,114260.0,0.98029094]
[1754465077919,0.3096018,114270.0,114260.0,0.98029094]
[1754465079122,0.76482468,114270.0,114260.0,0.98029094]
[1754465079513,0.74030468,114270.0,114260.0,0.98029094]
[1754465082721,0.2850818,114270.0,114260.0,0.98029094]
[1754465084020,0.3493542,114280.0,114270.0,0.2519241]
[1754465084227,0.76081938,114280.0,114270.0,0.3077341]
[1754465084524,0.78405938,114280.0,114270.0,0.3077341]
[1754465084719,0.80857938,114280.0,114270.0,0.3077341]
[1754465092741,0.80857938,114280.0,114270.0,0.3087341]
[1754465094443,0.80857938,114280.0,114270.0,0.3077341]
[1754465094640,0.86546339,114280.0,114270.0,0.3077341]
[1754465095344,0.3533565,114280.0,114270.0,0.3077341]
[1754465095641,0.86546339,114280.0,114270.0,0.3077341]
[1754465097234,0.01548,114280.0,114270.0,0.81984099]
[1754465097643,0.281894,114290.0,114280.0,0.3068593]
[1754465097843,0.281894,114290.0,114280.0,1.41848619]
[1754465098344,0.79400089,114290.0,114280.0,1.41848619]
[1754465098546,0.81863089,114290.0,114280.0,1.41848619]
[1754465098743,0.306524,114290.0,114280.0,0.9063793]
[1754465099141,0.306524,114290.0,114280.0,0.9073793]
[1754465100447,0.306524,114290.0,114280.0,0.9083793]
[1754465101849,0.76160012,114290.0,114280.0,0.9083793]
[1754465111759,0.2187228,114310.0,114300.0,0.1749887]
[1754465111951,0.3064988,114310.0,114300.0,0.9062287]
[1754465112253,0.76157492,114310.0,114300.0,0.9062287]
[1754465112553,0.78261738,114310.0,114300.0,0.9062287]
[1754465112755,0.76157492,114310.0,114300.0,0.9062287]
[1754465113251,0.76257492,114310.0,114300.0,0.9062287]
[1754465113752,0.76357492,114310.0,114300.0,0.9062287]
[1754465114549,0.76257492,114310.0,114300.0,0.9062287]
[1754465115553,0.76257492,114310.0,114300.0,0.9072287]
[1754465115754,0.76157492,114310.0,114300.0,0.9072287]
[1754465115950,0.76157492,114310.0,114300.0,0.9082287]
[1754465117058,0.76157492,114310.0,114300.0,0.9072287]
[1754465117249,0.76157492,114310.0,114300.0,0.9082287]
[1754465119459,0.76157492,114310.0,114300.0,0.9072287]
[1754465119647,0.76157492,114310.0,114300.0,0.9082287]
[1754465127062,0.3064988,114310.0,114300.0,0.9082287]
[1754465127363,0.76157492,114310.0,114300.0,0.9082287]
[1754465130066,0.1749788,114310.0,114300.0,0.9082287]
[1754465130558,0.1902788,114310.0,114300.0,0.9082287]
[1754465130765,0.2851088,114310.0,114300.0,0.9082287]
[1754465133963,0.2630053,114320.0,114310.0,0.2272436]
[1754465134168,0.2850883,114320.0,114310.0,0.3082236]
[1754465134667,0.3085283,114320.0,114310.0,0.3082236]
[1754465134873,0.2850883,114320.0,114310.0,0.3082236]
[1754465135469,0.3085283,114320.0,114310.0,0.3082236]
[1754465136869,0.1312132,114330.0,114310.0,0.76329972]
[1754465137069,0.3959966,114330.0,114320.0,1.36244432]
[1754465137268,0.3959966,114330.0,114320.0,0.9073682]
[1754465140774,0.3959966,114330.0,114320.0,0.97831291]
[1754465141973,0.85107272,114330.0,114320.0,0.97831291]
[1754465142274,0.3959966,114330.0,114320.0,0.97831291]
[1754465145972,0.3504666,114330.0,114320.0,0.97831291]
[1754465146477,0.3959966,114330.0,114320.0,0.97831291]
[1754465146777,0.85107272,114330.0,114320.0,0.97831291]
[1754465152695,0.90764885,114330.0,114320.0,0.97831291]
[1754465157912,1.4193011,114330.0,114320.0,0.97831291]
[1754465158503,0.90764885,114330.0,114320.0,0.97831291]
[1754465159004,0.88420885,114330.0,114320.0,1.48996516]
[1754465159398,0.88420885,114330.0,114320.0,0.97831291]
[1754465160705,0.90832885,114330.0,114320.0,0.97831291]
[1754465161804,0.14067836,114340.0,114320.0,1.31500696]
[1754465162011,0.79492065,114340.0,114330.0,0.81666525]
[1754465162208,0.73954065,114340.0,114330.0,0.81666525]
[1754465162506,0.77269065,114340.0,114330.0,0.81666525]
[1754465162707,0.3104693,114350.0,114340.0,0.3049976]
[1754465162895,0.83863155,114350.0,114340.0,1.41552985]
[1754465163711,0.86275155,114350.0,114340.0,1.41552985]
[1754465163902,0.86375155,114350.0,114340.0,1.41552985]
[1754465164811,0.3520993,114350.0,114340.0,0.9038776]
[1754465165110,0.37001215,114350.0,114340.0,0.9038776]
[1754465165514,0.3520993,114350.0,114340.0,0.9038776]
[1754465165811,0.3279793,114350.0,114340.0,0.9038776]
[1754465166405,0.001,114350.0,114340.0,0.9038776]
[1754465166802,0.1759124,114350.0,114340.0,0.9038776]
[1754465167903,0.001,114350.0,114340.0,0.9038776]
[1754465168208,0.001,114350.0,114340.0,1.35847951]
[1754465168398,0.001,114350.0,114340.0,0.9038776]
[1754465168603,0.3948062,114360.0,114350.0,0.3049824]
[1754465169509,0.41345401,114360.0,114350.0,0.3049824]
[1754465169711,0.86805592,114360.0,114350.0,0.3049824]
[1754465169899,0.41345401,114360.0,114350.0,0.3049824]
[1754465170209,0.86805592,114360.0,114350.0,0.3049824]
[1754465173210,0.3073624,114350.0,114340.0,0.2861917]
[1754465173409,0.76196431,114350.0,114340.0,0.8849517]
[1754465173609,0.76196431,114350.0,114340.0,0.9693717]
[1754465173809,0.76196431,114350.0,114340.0,0.9912017]
[1754465175105,0.3073624,114350.0,114340.0,0.9912017]
[1754465175310,0.1893224,114350.0,114340.0,0.9922017]
[1754465175510,0.76196431,114350.0,114340.0,0.9922017]
[1754465176012,0.3073624,114350.0,114340.0,0.9922017]
[1754465176215,0.76196431,114350.0,114340.0,0.9922017]
[1754465176616,0.3073624,114350.0,114340.0,0.9912017]
[1754465177720,0.2610124,114350.0,114340.0,0.9912017]
[1754465178426,0.1893224,114350.0,114340.0,0.9912017]
[1754465179420,0.2224724,114350.0,114340.0,0.9922017]
[1754465179621,0.2429824,114350.0,114340.0,0.9922017]
[1754465180019,0.2650124,114350.0,114340.0,0.9922017]
[1754465180319,0.2815224,114350.0,114340.0,0.9922017]
[1754465180716,0.75863431,114350.0,114340.0,0.9922017]
[1754465182121,0.3040324,114350.0,114340.0,0.9922017]
[1754465182321,0.75863431,114350.0,114340.0,0.9922017]
[1754465182524,0.75863431,114350.0,114340.0,0.9912017]
[1754465182725,0.75863431,114350.0,114340.0,0.9922017]
[1754465184327,0.3040324,114350.0,114340.0,0.9922017]
[1754465184518,0.75863431,114350.0,114340.0,0.9922017]
[1754465184824,0.3040324,114350.0,114340.0,0.9922017]
[1754465185026,0.75863431,114350.0,114340.0,0.9922017]
[1754465185222,0.75863431,114350.0,114340.0,0.60112]
[1754465185422,0.75863431,114350.0,114340.0,0.7760477]
[1754465185624,0.75863431,114350.0,114340.0,0.60112]
[1754465185823,0.75863431,114350.0,114340.0,0.7760477]
[1754465186223,0.71347431,114350.0,114340.0,0.7760477]
[1754465186527,0.75649431,114350.0,114340.0,0.9052177]
[1754465186727,0.81340914,114350.0,114340.0,0.9052177]
[1754465187225,0.81340914,114350.0,114340.0,0.8842377]
[1754465188128,0.81340914,114350.0,114340.0,0.2841177]
[1754465188431,0.81340914,114350.0,114340.0,0.9057377]
[1754465188632,0.7565879,114350.0,114340.0,0.9057377]
[1754465188828,0.7565879,114350.0,114340.0,0.3050977]
[1754465189025,0.7565879,114350.0,114340.0,0.7980477]
[1754465189224,0.7575879,114350.0,114340.0,0.7980477]
[1754465189630,0.7575879,114350.0,114340.0,0.8846777]
[1754465189830,0.7585879,114350.0,114340.0,0.9056577]
[1754465192129,0.7585879,114350.0,114340.0,0.3050977]
[1754465192330,0.7585879,114350.0,114340.0,0.9054577]
[1754465193229,0.7585879,114350.0,114340.0,0.70955]
[1754465193524,0.7585879,114350.0,114340.0,0.8499774]
[1754465194425,0.7585879,114350.0,114340.0,0.0523]
[1754465194625,0.7585879,114350.0,114340.0,0.65254]
[1754465197234,0.7585879,114350.0,114340.0,0.8274677]
[1754465197625,0.7585879,114350.0,114340.0,0.65254]
[1754465198231,0.7585879,114350.0,114340.0,0.8619677]
[1754465198430,0.7585879,114350.0,114340.0,0.8843577]
[1754465198636,0.7585879,114350.0,114340.0,0.70943]
[1754465198831,0.7585879,114350.0,114340.0,0.73041]
[1754465200942,0.3038924,114350.0,114340.0,0.73041]
[1754465201237,0.7585879,114350.0,114340.0,0.73041]
[1754465201638,0.7585879,114350.0,114340.0,0.9053377]
[1754465206138,0.7585879,114350.0,114340.0,0.73041]
[1754465206332,0.2271277,114340.0,114330.0,0.3488343]
[1754465206537,0.7566032,114340.0,114330.0,0.9047]
[1754465206832,0.7566032,114340.0,114330.0,0.72977]
[1754465207946,0.7566032,114340.0,114330.0,0.65173]
[1754465208337,0.7566032,114340.0,114330.0,0.67429]
[1754465208538,1.3564832,114340.0,114330.0,0.02974]
[1754465208744,1.3564832,114340.0,114330.0,0.0523]
[1754465209544,1.3564832,114340.0,114330.0,0.0868]
[1754465210047,1.3564832,114340.0,114330.0,0.10919]
[1754465210247,1.3564832,114340.0,114330.0,0.13016]
[1754465210647,1.92521538,114340.0,114330.0,0.13016]
[1754465211147,1.92521538,114340.0,114330.0,0.10919]
[1754465211347,1.32533538,114340.0,114330.0,0.03796]
[1754465211545,0.3044684,114330.0,114320.0,0.14576471]
[1754465211748,1.32789608,114330.0,114320.0,0.14576471]
[1754465211946,0.3044837,114320.0,114310.0,0.9460881]
[1754465212148,0.81619754,114320.0,114310.0,0.9460881]
[1754465212651,0.83398205,114320.0,114310.0,0.9460881]
[1754465214652,0.77720316,114320.0,114310.0,0.9460881]
[1754465219758,0.77720316,114320.0,114310.0,0.3464481]
[1754465219950,0.77720316,114320.0,114310.0,0.9462081]
[1754465220457,0.77720316,114320.0,114310.0,0.902464]
[1754465220753,0.77720316,114320.0,114310.0,0.8814998]
[1754465220957,1.83189811,114320.0,114310.0,0.10676]
[1754465221159,1.37696316,114320.0,114310.0,0.10676]
[1754465221456,1.37696316,114320.0,114310.0,0.3027098]
[1754465224556,1.37696316,114320.0,114310.0,0.12773]
[1754465224853,1.37696316,114320.0,114310.0,0.3027102]
[1754465225354,1.37696316,114320.0,114310.0,0.3047102]
[1754465225959,0.92202821,114320.0,114310.0,0.3047102]
[1754465226259,1.37696316,114320.0,114310.0,0.3047102]
[1754465226557,1.37696316,114320.0,114310.0,0.3027102]
[1754465227457,1.37696316,114320.0,114310.0,0.3037102]
[1754465227652,0.75941865,114320.0,114310.0,0.3037102]
[1754465227857,1.35909865,114320.0,114310.0,0.3037102]
[1754465228059,1.35909865,114320.0,114310.0,0.3027102]
[1754465229355,1.3757778,114320.0,114310.0,0.3027102]
[1754465229963,1.35909865,114320.0,114310.0,0.3027102]
[1754465232161,0.9041637,114320.0,114310.0,0.3027102]
[1754465232361,1.35909865,114320.0,114310.0,0.3027102]
[1754465232763,0.9041637,114320.0,114310.0,0.3027102]
[1754465232951,1.35909865,114320.0,114310.0,0.3027102]
[1754465234662,1.41597818,114320.0,114310.0,0.3027102]
[1754465234861,1.41597818,114320.0,114310.0,0.2817402]
[1754465235063,1.43247166,114320.0,114310.0,0.2817402]
[1754465235761,1.43247166,114320.0,114310.0,0.2498002]
[1754465236159,0.3045002,114310.0,114300.0,0.2498017]
[1754465236363,1.32812916,114310.0,114300.0,0.1749817]
[1754465236565,0.81631468,114310.0,114300.0,0.3027117]
[1754465237256,0.77127468,114310.0,114300.0,0.3027117]
[1754465237453,0.81631468,114310.0,114300.0,0.3027117]
[1754465237663,0.81631468,114310.0,114300.0,0.3037117]
[1754465238462,0.81731468,114310.0,114300.0,0.3027117]
[1754465238856,0.81731468,114310.0,114300.0,0.2817417]
[1754465239466,0.81731468,114310.0,114300.0,0.2498017]
[1754465240063,0.81831468,114310.0,114300.0,0.2498017]
[1754465240667,0.81831468,114310.0,114300.0,0.3046017]
[1754465242468,0.3065002,114310.0,114300.0,0.3046017]
[1754465242765,0.81831468,114310.0,114300.0,0.3046017]
[1754465243160,0.2284502,114310.0,114300.0,0.3046017]
[1754465243360,0.81802468,114310.0,114300.0,0.3046017]
[1754465244165,0.3062102,114310.0,114300.0,0.3046017]
[1754465244568,0.81802468,114310.0,114300.0,0.3046017]
[1754465246562,0.81702468,114310.0,114300.0,0.3046017]
[1754465249666,0.81602468,114310.0,114300.0,0.3046017]
[1754465251669,0.3042102,114310.0,114300.0,0.3046017]
[1754465251870,0.81602468,114310.0,114300.0,0.3046017]
[1754465258274,0.3042102,114310.0,114300.0,0.3046017]
[1754465258471,0.81602468,114310.0,114300.0,0.3046017]
[1754465258976,0.81602468,114310.0,114300.0,0.46146556]
[1754465267090,0.81602468,114310.0,114300.0,1.00622556]
[1754465267292,1.32783916,114310.0,114300.0,0.33184556]
[1754465267592,1.32783916,114310.0,114300.0,0.15686386]
[1754465267790,0.2264654,114300.0,114290.0,0.8621429]
[1754465267981,1.32785436,114300.0,114290.0,0.8621429]
[1754465268382,1.92749436,114300.0,114290.0,0.2625029]
[1754465269787,1.92749436,114300.0,114290.0,0.2869929]
[1754465272993,1.92749436,114300.0,114290.0,0.2625029]
[1754465275894,1.92749436,114300.0,114290.0,0.3172629]
[1754465276094,1.92749436,114300.0,114290.0,0.3519529]
[1754465276294,1.92749436,114300.0,114290.0,0.3744429]
[1754465277792,1.92749436,114300.0,114290.0,0.3397529]
[1754465278792,1.92749436,114300.0,114290.0,0.3744429]
[1754465281096,1.92749436,114300.0,114290.0,0.3940329]
[1754465284302,1.92749436,114300.0,114290.0,0.3397529]
[1754465284501,0.10455,114300.0,114290.0,0.90584738]
[1754465284702,0.2795455,114300.0,114290.0,0.90584738]
[1754465284905,0.81414998,114300.0,114290.0,1.06271124]
[1754465285602,0.81414998,114300.0,114290.0,0.90584738]
[1754465285803,0.81414998,114300.0,114290.0,0.90684738]
[1754465286905,0.81414998,114300.0,114290.0,0.3950329]
[1754465287412,0.81414998,114300.0,114290.0,0.3940329]
[1754465288009,0.81414998,114300.0,114290.0,0.90584738]
[1754465288700,0.79135998,114300.0,114290.0,0.90584738]
[1754465290508,0.79135998,114300.0,114290.0,1.06271124]
[1754465291997,0.79135998,114300.0,114290.0,0.90584738]
[1754465292505,0.73827998,114300.0,114290.0,0.90584738]
[1754465292705,0.77237998,114300.0,114290.0,0.90584738]
[1754465292901,0.79349998,114300.0,114290.0,0.90584738]
[1754465293805,0.79349998,114300.0,114290.0,1.06271124]
[1754465297409,0.05161,114310.0,114300.0,0.1414562]
[1754465297602,0.014,114310.0,114300.0,1.56681271]
[1754465297805,0.0481,114310.0,114300.0,1.56681271]
[1754465297999,0.10683,114310.0,114300.0,1.56681271]
[1754465298709,0.10783,114310.0,114300.0,1.56681271]
[1754465299311,0.10883,114310.0,114300.0,1.56681271]
[1754465299512,0.08771,114310.0,114300.0,1.56681271]
[1754465299909,0.001,114310.0,114300.0,2.07962719]
[1754465300214,0.81766408,114330.0,114320.0,0.3037149]
[1754465300414,0.81766408,114330.0,114320.0,0.9029549]
[1754465300615,0.81766408,114330.0,114320.0,1.41476938]
[1754465301217,0.81766408,114330.0,114320.0,0.9029549]
[1754465301719,0.81866408,114330.0,114320.0,0.9029549]
[1754465302319,0.81966408,114330.0,114320.0,0.9029549]
[1754465303316,0.83475043,114330.0,114320.0,0.9029549]
[1754465303521,0.83375043,114330.0,114320.0,0.9029549]
[1754465303819,0.81866408,114330.0,114320.0,0.9029549]
[1754465304013,0.81766408,114330.0,114320.0,0.9029549]
[1754465304618,0.76064873,114330.0,114320.0,0.9029549]
[1754465305016,0.76064873,114330.0,114320.0,0.97277294]
[1754465307925,0.64274873,114330.0,114320.0,0.91928294]
[1754465308123,0.76064873,114330.0,114320.0,0.97277294]
[1754465311523,0.1309,114330.0,114320.0,0.9906213]
[1754465311724,1.44723593,114340.0,114330.0,0.3036995]
[1754465312023,0.2818772,114340.0,114330.0,0.3036995]
[1754465312229,0.3058472,114340.0,114330.0,0.3036995]
[1754465314826,0.3058342,114340.0,114330.0,0.3036995]
[1754465315326,0.2100141,114340.0,114330.0,0.3036995]
[1754465315526,0.2818641,114340.0,114330.0,0.3036995]
[1754465315918,0.3058341,114340.0,114330.0,0.3036995]
[1754465316114,0.1309,114340.0,114330.0,0.3036995]
[1754465316320,1.6309,114340.0,114330.0,0.3036995]
[1754465316527,1.6319,114340.0,114330.0,0.3036995]
[1754465317017,1.6309,114340.0,114330.0,0.3036995]
[1754465317521,0.1309,114340.0,114330.0,0.3036995]
[1754465317717,0.1309,114340.0,114330.0,0.3046995]
[1754465317916,0.03508,114340.0,114330.0,0.3046995]
[1754465318113,0.06999,114340.0,114330.0,0.3046995]
[1754465318318,0.06999,114340.0,114330.0,0.3056995]
[1754465318826,0.2818642,114340.0,114330.0,0.3056995]
[1754465319125,0.3058342,114340.0,114330.0,0.3056995]
[1754465323735,0.76063333,114340.0,114330.0,0.3056995]
[1754465324629,0.81742463,114340.0,114330.0,0.3056995]
[1754465324830,0.81742463,114340.0,114330.0,0.3046995]
[1754465326337,2.31742463,114340.0,114330.0,0.3046995]
[1754465327739,2.31742463,114340.0,114330.0,0.81628993]
[1754465327935,0.81742463,114340.0,114330.0,0.81628993]
[1754465328137,0.81742463,114340.0,114330.0,0.3046995]
[1754465328336,0.81742463,114340.0,114330.0,0.81628993]
[1754465328535,0.81742463,114340.0,114330.0,0.81528993]
[1754465332142,0.3058342,114340.0,114330.0,1.41428993]
[1754465332343,0.81742463,114340.0,114330.0,1.41428993]
[1754465332538,0.1309,114340.0,114330.0,1.41428993]
[1754465332736,0.64249043,114340.0,114330.0,1.41428993]
[1754465334844,2.14249043,114340.0,114330.0,1.41428993]
[1754465335537,2.11852043,114340.0,114330.0,1.41428993]
[1754465336544,2.11714043,114340.0,114330.0,1.41428993]
[1754465336744,1.60555,114340.0,114330.0,1.41428993]
[1754465337345,1.62999,114340.0,114330.0,1.41428993]
[1754465338147,1.513,114340.0,114330.0,1.92588036]
[1754465338346,1.513,114340.0,114330.0,0.9026995]
[1754465338546,1.513,114340.0,114330.0,1.41428993]
[1754465338745,1.5,114340.0,114330.0,1.41428993]
[1754465338945,0.3025712,114370.0,114360.0,0.2096763]
[1754465339141,0.81416163,114370.0,114360.0,0.8775263]
[1754465339548,0.81416163,114370.0,114360.0,1.38911673]
[1754465340142,0.81416163,114370.0,114360.0,0.8775263]
[1754465340342,0.81416163,114370.0,114360.0,0.8583963]
[1754465340543,0.81416163,114370.0,114360.0,0.8425363]
[1754465340844,0.81516163,114370.0,114360.0,0.8095963]
[1754465341447,0.81516163,114370.0,114360.0,0.8425363]
[1754465342150,0.82875972,114370.0,114360.0,0.8425363]
[1754465345150,0.82875972,114370.0,114360.0,0.8616663]
[1754465347246,0.3035712,114370.0,114360.0,0.8775263]
[1754465347450,0.81516163,114370.0,114360.0,0.8775263]
[1754465347654,0.3035712,114370.0,114360.0,0.8775263]
[1754465347949,0.81516163,114370.0,114360.0,0.8775263]
[1754465348751,0.64027043,114370.0,114360.0,0.9001563]
[1754465349140,0.64027043,114370.0,114360.0,1.41174673]
[1754465350260,0.3035705,114370.0,114360.0,0.9001563]
[1754465350446,0.81516093,114370.0,114360.0,1.41174673]
[1754465350953,0.81516093,114370.0,114360.0,0.9001563]
[1754465351653,0.81516093,114370.0,114360.0,1.41174673]
[1754465354154,0.76335093,114370.0,114360.0,1.38911673]
[1754465354354,0.81516093,114370.0,114360.0,0.9001563]
[1754465354852,1.8035705,114370.0,114360.0,0.9001563]
[1754465355052,2.31516093,114370.0,114360.0,0.9001563]
[1754465355254,1.8035705,114370.0,114360.0,0.9001563]
[1754465355447,2.31516093,114370.0,114360.0,0.9001563]
[1754465358352,1.8035705,114370.0,114360.0,0.8775263]
[1754465358555,2.31516093,114370.0,114360.0,0.8775263]
[1754465359660,2.31516093,114370.0,114360.0,1.41174673]
[1754465360355,2.31516093,114370.0,114360.0,0.9001563]
[1754465360550,2.31516093,114370.0,114360.0,1.41174673]
[1754465360750,2.31516093,114370.0,114360.0,0.9001563]
[1754465360951,2.31516093,114370.0,114360.0,1.41174673]
[1754465362159,1.8035705,114370.0,114360.0,1.41174673]
[1754465362353,2.31516093,114370.0,114360.0,1.41174673]
[1754465363757,1.8035705,114370.0,114360.0,1.41174673]
[1754465363958,2.31516093,114370.0,114360.0,1.41174673]
[1754465366463,2.31516093,114370.0,114360.0,1.38911673]
[1754465366758,2.31516093,114370.0,114360.0,0.8775263]
[1754465369269,2.31516093,114370.0,114360.0,0.8095962]
[1754465369562,2.31516093,114370.0,114360.0,0.7748257]
[1754465373866,2.31516093,114370.0,114360.0,0.8078257]
[1754465374067,2.82675136,114370.0,114360.0,0.7748257]
[1754465374268,2.82675136,114370.0,114360.0,0.59992]
[1754465374470,0.3044657,114360.0,114350.0,0.39312639]
[1754465374767,1.32764656,114360.0,114350.0,0.99816639]
[1754465375158,1.32764656,114360.0,114350.0,0.84130253]
[1754465375962,1.32864656,114360.0,114350.0,0.87718253]
[1754465376266,1.32864656,114360.0,114350.0,0.93098253]
[1754465376658,1.32864656,114360.0,114350.0,0.94627253]
[1754465376858,0.81705613,114360.0,114350.0,0.94627253]
[1754465377063,1.32864656,114360.0,114350.0,0.87718253]
[1754465377269,1.32864656,114360.0,114350.0,0.84130253]
[1754465377672,0.3054657,114360.0,114350.0,0.84130253]
[1754465377870,1.32864656,114360.0,114350.0,0.84130253]
[1754465379059,1.32864656,114360.0,114350.0,0.87430253]
[1754465379255,0.81705613,114360.0,114350.0,0.94627253]
[1754465380060,1.32864656,114360.0,114350.0,0.87718253]
[1754465380670,1.32864656,114360.0,114350.0,0.91018253]
[1754465380869,1.32864656,114360.0,114350.0,0.93098253]
[1754465382373,0.81705613,114360.0,114350.0,1.48049296]
[1754465382965,0.81705613,114360.0,114350.0,1.45786296]
[1754465383165,0.81705613,114360.0,114350.0,1.48049296]
[1754465383463,0.81705613,114360.0,114350.0,0.96890253]
[1754465386076,0.81605613,114360.0,114350.0,0.96890253]
[1754465387474,0.81605613,114360.0,114350.0,1.48049296]
[1754465388273,0.81605613,114360.0,114350.0,0.96890253]
[1754465388472,0.81605613,114360.0,114350.0,1.48049296]
[1754465390372,0.81605613,114360.0,114350.0,0.96890253]
[1754465393369,0.3044657,114360.0,114350.0,0.96890253]
[1754465393670,0.81605613,114360.0,114350.0,1.48049296]
[1754465394874,0.81605613,114360.0,114350.0,0.96890253]
[1754465395074,0.81605613,114360.0,114350.0,1.48049296]
[1754465395875,0.81605613,114360.0,114350.0,0.96890253]
[1754465399382,0.81605613,114360.0,114350.0,0.84130253]
[1754465399577,1.32764656,114360.0,114350.0,0.84130253]
[1754465399777,1.32764656,114360.0,114350.0,0.87339253]
[1754465400082,1.32764656,114360.0,114350.0,0.92471253]
[1754465400282,1.32764656,114360.0,114350.0,0.90143553]
[1754465403081,1.32764656,114360.0,114350.0,0.29639553]
[1754465403283,1.32764656,114360.0,114350.0,0.89995553]
[1754465403481,1.32764656,114360.0,114350.0,1.05681939]
[1754465404581,1.32864656,114360.0,114350.0,1.05681939]
[1754465406476,1.32864656,114360.0,114350.0,0.98819939]
[1754465406682,1.32864656,114360.0,114350.0,0.79585553]
[1754465407678,1.32864656,114360.0,114350.0,0.01762723]
[1754465409072,1.32864656,114360.0,114340.0,0.93531936]
[1754465409073,0.202941,114350.0,114340.0,0.93531936]
[1754465409283,0.81148143,114350.0,114340.0,0.36388936]
[1754465409480,0.81148143,114350.0,114340.0,0.96740936]
[1754465410586,0.81148143,114350.0,114340.0,0.15686386]
[1754465410880,0.2999062,114340.0,114330.0,0.250767]
[1754465411079,0.81149663,114340.0,114330.0,0.926017]
[1754465411586,0.82414629,114340.0,114330.0,0.926017]
[1754465412085,0.82414629,114340.0,114330.0,0.927017]
[1754465412384,0.82414629,114340.0,114330.0,1.08388086]
[1754465413586,0.82414629,114340.0,114330.0,1.08488086]
[1754465413884,0.82414629,114340.0,114330.0,1.08388086]
[1754465414979,0.82414629,114340.0,114330.0,1.08288086]
[1754465415486,0.82414629,114340.0,114330.0,0.926017]
[1754465417788,0.2999062,114340.0,114330.0,0.926017]
[1754465417989,0.81149663,114340.0,114330.0,0.926017]
[1754465418287,0.81149663,114340.0,114330.0,0.948647]
[1754465420293,0.2999062,114340.0,114330.0,0.948647]
[1754465420496,0.81149663,114340.0,114330.0,0.948647]
[1754465421695,0.2999062,114340.0,114330.0,0.948647]
[1754465421899,0.81149663,114340.0,114330.0,0.948647]
[1754465422391,0.68652663,114340.0,114330.0,0.948647]
[1754465422592,0.71097663,114340.0,114330.0,1.46023743]
[1754465422996,0.77371663,114340.0,114330.0,0.948647]
[1754465423294,0.81507663,114340.0,114330.0,0.948647]
[1754465426198,0.81507663,114340.0,114330.0,1.08061086]
[1754465426591,0.81507663,114340.0,114330.0,1.10320086]
[1754465430799,0.81507663,114340.0,114330.0,0.946337]
[1754465431599,0.81507663,114340.0,114330.0,1.10320086]
[1754465448624,0.3034862,114340.0,114330.0,1.10320086]
[1754465448824,0.81507663,114340.0,114330.0,1.10320086]
[1754465452725,0.81507663,114340.0,114330.0,0.946337]
[1754465458326,0.81507663,114340.0,114330.0,1.10320086]
[1754465460629,1.32666706,114340.0,114330.0,0.15686386]
[1754465460828,1.32666706,114340.0,114330.0,0.75798386]
[1754465461027,1.92778706,114340.0,114330.0,0.75798386]
[1754465461232,1.92778706,114340.0,114330.0,0.15686386]
[1754465461635,0.2254516,114330.0,114320.0,0.95295038]
[1754465461823,1.32272246,114330.0,114320.0,0.95295038]
[1754465462027,1.32272246,114330.0,114320.0,0.98544038]
[1754465462736,1.32372246,114330.0,114320.0,0.98544038]
[1754465463034,1.32372246,114330.0,114320.0,1.00395038]
[1754465464839,1.32372246,114330.0,114320.0,0.96020898]
[1754465465134,1.32372246,114330.0,114320.0,0.29685098]
[1754465465340,1.32372246,114330.0,114320.0,0.70346804]
[1754465465533,1.32372246,114330.0,114320.0,0.67097804]
[1754465465733,1.32372246,114330.0,114320.0,0.06981804]
[1754465466037,0.2995569,114320.0,114310.0,0.9425735]
[1754465466235,0.81114733,114320.0,114310.0,0.9935735]
[1754465466435,0.81114733,114320.0,114310.0,1.0087335]
[1754465467141,0.81114733,114320.0,114310.0,1.16559736]
[1754465470337,0.81114733,114320.0,114310.0,1.0087335]
[1754465472649,0.81114733,114320.0,114310.0,1.0313635]
[1754465479552,0.68655733,114320.0,114310.0,1.0313635]
[1754465479752,0.70980733,114320.0,114310.0,1.0313635]
[1754465479957,0.76930733,114320.0,114310.0,1.0313635]
[1754465480252,0.81003733,114320.0,114310.0,1.0313635]
[1754465481251,0.2984469,114320.0,114310.0,1.0313635]
[1754465481452,0.81003733,114320.0,114310.0,1.0313635]
[1754465483253,0.81003733,114320.0,114310.0,1.18822736]
[1754465483756,0.2480548,114330.0,114320.0,0.299247]
[1754465483948,0.81003523,114330.0,114320.0,0.299247]
[1754465484348,1.32162566,114330.0,114320.0,0.299247]
[1754465484547,1.32162566,114330.0,114320.0,0.36749734]
[1754465485048,1.24854566,114330.0,114320.0,0.36749734]
[1754465485346,0.78734523,114330.0,114320.0,0.36749734]
[1754465486649,0.1982148,114330.0,114320.0,0.87908777]
[1754465486854,0.1982016,114330.0,114320.0,0.87908777]
[1754465487052,0.70979203,114330.0,114320.0,0.87908777]
[1754465487454,0.70979203,114330.0,114320.0,0.36749734]
[1754465487648,0.72510203,114330.0,114320.0,0.36749734]
[1754465488156,0.76929203,114330.0,114320.0,0.36749734]
[1754465488454,0.78733203,114330.0,114320.0,0.36949734]
[1754465488652,0.81002203,114330.0,114320.0,0.36949734]
[1754465491147,0.81002203,114330.0,114320.0,0.97017734]
[1754465492157,0.81002203,114330.0,114320.0,1.1270412]
[1754465493057,0.81002203,114330.0,114320.0,0.97017734]
[1754465493661,0.81002213,114330.0,114320.0,0.97017734]
[1754465494754,0.07309,114330.0,114320.0,1.1270412]
[1754465495056,0.02325,114340.0,114330.0,0.2992317]
[1754465495360,0.02325,114340.0,114330.0,0.81082213]
[1754465495559,0.53484043,114340.0,114330.0,0.81082213]
[1754465496664,0.02325,114340.0,114330.0,0.2992317]
[1754465497865,0.02325,114340.0,114330.0,0.31125105]
[1754465498364,0.02325,114340.0,114330.0,0.31225105]
[1754465498766,0.02325,114340.0,114330.0,0.31125105]
[1754465498959,0.02325,114340.0,114330.0,0.31325105]
[1754465499563,0.03856,114340.0,114330.0,0.31325105]
[1754465500062,0.07091,114340.0,114330.0,0.31325105]
[1754465501165,0.08275,114340.0,114330.0,0.31325105]
[1754465501365,0.12348,114340.0,114330.0,0.31525105]
[1754465507471,0.12348,114340.0,114330.0,0.47211491]
[1754465508067,0.75302253,114350.0,114340.0,0.31879496]
[1754465508269,0.2984011,114350.0,114340.0,0.91935496]